bitfinex-derivatives/quotes_BTCF0:USTF0_20250904
["timestamp","ask_amount","ask_price","bid_price","bid_amount"]
[1756955214129,0.4719456,111480.0,111470.0,0.92347]
[1756955214333,0.4619456,111480.0,111470.0,0.92347]
[1756955214533,0.7919456,111480.0,111470.0,0.92347]
[1756955214935,0.90234171,111480.0,111470.0,0.92347]
[1756955215141,0.5319456,111480.0,111470.0,0.92347]
[1756955215442,1.21234171,111480.0,111470.0,0.92347]
[1756955215747,1.47464171,111480.0,111470.0,0.92347]
[1756955215950,1.1042456,111480.0,111470.0,0.92347]
[1756955216244,1.19464171,111480.0,111470.0,0.03915]
[1756955216428,1.16464171,111480.0,111470.0,0.92351]
[1756955216837,1.21274114,111480.0,111470.0,0.92351]
[1756955217042,1.51274114,111480.0,111470.0,0.92351]
[1756955217438,1.23274114,111480.0,111470.0,0.03915]
[1756955217638,1.55274114,111480.0,111470.0,0.90851]
[1756955218032,1.56274114,111480.0,111470.0,0.92319]
[1756955218648,1.25274114,111480.0,111470.0,0.92319]
[1756955218945,1.56274114,111480.0,111470.0,0.92319]
[1756955219337,1.25044114,111480.0,111470.0,0.92319]
[1756955220237,1.25044114,111480.0,111470.0,0.92091]
[1756955220437,0.70004503,111480.0,111470.0,0.92091]
[1756955220744,1.07044114,111480.0,111470.0,0.92091]
[1756955220947,0.70004503,111480.0,111470.0,0.92091]
[1756955221145,1.02234171,111480.0,111470.0,0.03915]
[1756955221348,1.08649238,111480.0,111470.0,0.92083]
[1756955221645,1.07037131,111480.0,111470.0,0.92083]
[1756955222248,0.6999752,111480.0,111470.0,0.92083]
[1756955222434,1.07037131,111480.0,111470.0,0.92083]
[1756955222947,0.6999752,111480.0,111470.0,0.92083]
[1756955223249,1.02234171,111480.0,111470.0,0.92083]
[1756955223445,1.02234171,111480.0,111460.0,0.38016]
[1756955223651,0.44774,111470.0,111460.0,0.91191]
[1756955223949,1.19995208,111470.0,111460.0,0.91171]
[1756955224143,1.26410275,111470.0,111460.0,0.91171]
[1756955224343,0.17290664,111470.0,111460.0,0.92679]
[1756955224543,0.1568415,111470.0,111460.0,1.29718611]
[1756955224947,0.1572415,111470.0,111460.0,0.04403]
[1756955225144,0.8680415,111470.0,111460.0,0.04403]
[1756955225449,0.8680415,111470.0,111460.0,0.92743]
[1756955225450,1.19035208,111470.0,111460.0,0.92743]
[1756955225750,0.81995597,111470.0,111460.0,0.92743]
[1756955226346,0.88410664,111470.0,111460.0,0.92743]
[1756955226545,0.81995597,111470.0,111460.0,0.92743]
[1756955226741,0.82095597,111470.0,111460.0,0.92743]
[1756955226943,1.19135208,111470.0,111460.0,0.92743]
[1756955227149,0.82295597,111470.0,111460.0,0.92743]
[1756955227352,0.82495597,111470.0,111460.0,0.92743]
[1756955227552,1.19335208,111470.0,111460.0,0.04403]
[1756955227748,1.26050275,111470.0,111460.0,0.02895]
[1756955227952,1.51050275,111470.0,111460.0,0.88848]
[1756955228354,1.51050275,111470.0,111460.0,0.88808]
[1756955228651,1.51050275,111470.0,111460.0,0.91295]
[1756955228855,1.51050275,111470.0,111460.0,0.92763]
[1756955229154,1.14010664,111470.0,111460.0,0.92763]
[1756955229352,1.51050275,111470.0,111460.0,0.92763]
[1756955230857,1.50750275,111470.0,111460.0,0.92763]
[1756955231050,1.50950275,111470.0,111460.0,0.92763]
[1756955232059,1.13910664,111470.0,111460.0,0.92763]
[1756955232355,0.55910664,111470.0,111460.0,0.92763]
[1756955232757,0.87010664,111470.0,111460.0,0.92763]
[1756955233052,0.56010664,111470.0,111460.0,0.92763]
[1756955233257,0.80555597,111470.0,111460.0,0.92763]
[1756955233854,0.80595597,111470.0,111460.0,0.92763]
[1756955234155,0.89010664,111470.0,111460.0,0.92763]
[1756955234357,0.56010664,111470.0,111460.0,0.92763]
[1756955234545,0.56010664,111470.0,111460.0,1.29802611]
[1756955234747,0.84595208,111470.0,111460.0,0.92447]
[1756955234947,1.20635208,111470.0,111460.0,1.18967]
[1756955235149,0.90010664,111470.0,111460.0,1.18947]
[1756955235351,1.27050275,111470.0,111460.0,0.29455]
[1756955235551,1.27050275,111470.0,111460.0,1.17771]
[1756955235752,1.26950275,111470.0,111460.0,1.17731]
[1756955235959,1.26950275,111470.0,111460.0,1.19198]
[1756955236359,0.53910664,111470.0,111460.0,1.19198]
[1756955236559,1.54050275,111470.0,111460.0,0.00488]
[1756955236759,0.0361,111460.0,111450.0,0.88284]
[1756955237059,1.23332709,111460.0,111450.0,0.88264]
[1756955237261,1.29562709,111460.0,111450.0,0.88264]
[1756955237461,1.29556879,111460.0,111450.0,0.88264]
[1756955238357,1.31349208,111460.0,111450.0,0.88184]
[1756955238860,1.31549208,111460.0,111450.0,0.88184]
[1756955240959,1.31549208,111460.0,111450.0,0.90485]
[1756955241461,1.2994897,111460.0,111450.0,0.90485]
[1756955242455,0.91564189,111460.0,111450.0,0.90485]
[1756955242661,1.2859797,111460.0,111450.0,0.88184]
[1756955243260,1.2859797,111460.0,111450.0,0.90485]
[1756955244964,0.91564189,111460.0,111450.0,0.90485]
[1756955245258,1.2859797,111460.0,111450.0,0.90485]
[1756955247763,0.91564189,111460.0,111450.0,0.90485]
[1756955247963,1.2859797,111460.0,111450.0,0.90485]
[1756955248566,1.2859797,111460.0,111450.0,0.91912]
[1756955251866,0.91564189,111460.0,111450.0,0.91912]
[1756955252263,1.2859797,111460.0,111450.0,0.91912]
[1756955254366,0.53564189,111460.0,111450.0,0.91912]
[1756955254664,0.02581597,111460.0,111450.0,1.53945781]
[1756955255369,0.34581597,111460.0,111450.0,1.53945781]
[1756955255759,0.34581597,111460.0,111450.0,1.80465781]
[1756955255959,0.34581597,111460.0,111450.0,1.42836]
[1756955256159,0.04581597,111460.0,111450.0,1.17836]
[1756955256361,0.40581597,111460.0,111450.0,1.42836]
[1756955257166,0.34581597,111460.0,111450.0,1.42836]
[1756955257864,0.04581597,111460.0,111450.0,1.42836]
[1756955258069,0.34581597,111460.0,111450.0,1.42836]
[1756955258471,0.04581597,111460.0,111450.0,1.42836]
[1756955258673,0.33581597,111460.0,111450.0,1.42836]
[1756955258864,0.04581597,111460.0,111450.0,1.42836]
[1756955259070,0.37581597,111460.0,111450.0,1.42836]
[1756955259273,0.04581597,111460.0,111450.0,1.42836]
[1756955259474,0.39581597,111460.0,111450.0,1.42836]
[1756955259665,0.38581597,111460.0,111450.0,1.42836]
[1756955260467,0.40840597,111460.0,111450.0,0.55248]
[1756955260675,0.40840597,111460.0,111450.0,1.4262]
[1756955260870,0.45013753,111460.0,111450.0,1.4262]
[1756955261171,0.44013753,111460.0,111450.0,1.4262]
[1756955261368,0.14013753,111460.0,111450.0,1.4262]
[1756955261571,0.16825752,111460.0,111450.0,1.4262]
[1756955261771,0.18825752,111460.0,111450.0,1.4262]
[1756955262566,0.50825752,111460.0,111450.0,1.4262]
[1756955263074,0.18825752,111460.0,111450.0,1.423]
[1756955263274,0.49825752,111460.0,111450.0,1.423]
[1756955263666,0.18825752,111460.0,111450.0,1.423]
[1756955263869,0.14566752,111460.0,111450.0,1.423]
[1756955264174,0.14566752,111460.0,111450.0,1.79333781]
[1756955264677,0.16566752,111460.0,111450.0,1.79333781]
[1756955265168,0.13623596,111460.0,111450.0,1.79333781]
[1756955265475,0.07393596,111460.0,111450.0,1.79333781]
[1756955266169,0.07393596,111460.0,111450.0,2.15413781]
[1756955266473,0.07293596,111460.0,111450.0,2.15413781]
[1756955267074,0.07093596,111460.0,111450.0,2.15413781]
[1756955270477,0.02279267,111460.0,111450.0,2.15413781]
[1756955274573,0.02279267,111460.0,111450.0,2.52447562]
[1756955275077,0.02279267,111460.0,111450.0,2.15413781]
[1756955275470,0.02279267,111460.0,111450.0,2.52447562]
[1756955276282,0.02279267,111460.0,111450.0,3.35484244]
[1756955276478,0.02279267,111460.0,111450.0,3.17964244]
[1756955276683,0.0002,111480.0,111470.0,0.03772]
[1756955276870,0.0001,111480.0,111470.0,1.63653781]
[1756955277070,0.0624,111480.0,111470.0,1.63653781]
[1756955277270,0.08419905,111480.0,111470.0,1.63653781]
[1756955277475,0.08419905,111480.0,111470.0,1.2662]
[1756955277675,0.08419905,111480.0,111470.0,1.64531905]
[1756955278284,0.08619905,111480.0,111470.0,2.37645686]
[1756955278481,0.0644,111480.0,111470.0,2.37645686]
[1756955278976,0.0644,111480.0,111470.0,2.00611905]
[1756955279176,0.0041,111480.0,111470.0,2.00611905]
[1756955279583,0.0664,111480.0,111470.0,1.38843905]
[1756955279784,0.0664,111480.0,111470.0,2.25739905]
[1756955280086,0.0664,111480.0,111470.0,2.32745265]
[1756955280386,0.0664,111480.0,111470.0,2.25739905]
[1756955280981,0.0664,111480.0,111470.0,1.01810124]
[1756955281187,0.0664,111480.0,111470.0,2.25719905]
[1756955281585,0.0664,111480.0,111470.0,1.88686124]
[1756955281884,0.0664,111480.0,111470.0,2.25719905]
[1756955282082,0.0664,111480.0,111470.0,1.38843905]
[1756955282287,0.0664,111480.0,111470.0,2.25671905]
[1756955282685,0.0664,111480.0,111470.0,2.25651905]
[1756955282983,0.0664,111480.0,111470.0,1.01810124]
[1756955283185,0.0664,111480.0,111470.0,2.25659905]
[1756955283788,0.0664,111480.0,111470.0,1.38843905]
[1756955283989,0.0881686,111480.0,111470.0,2.25639905]
[1756955284780,0.0881686,111480.0,111470.0,2.41938472]
[1756955284984,0.0881686,111480.0,111470.0,2.32970962]
[1756955285382,0.0881686,111480.0,111470.0,2.07970962]
[1756955285986,0.0881686,111480.0,111470.0,3.79559815]
[1756955286893,0.0664,111480.0,111470.0,3.82559815]
[1756955288584,0.0001,111500.0,111480.0,0.0896619]
[1756955288789,0.43451999,111520.0,111510.0,0.03772]
[1756955288989,0.83618483,111520.0,111510.0,0.9038]
[1756955289193,0.85034483,111520.0,111510.0,0.86424]
[1756955289787,1.12847326,111520.0,111510.0,0.86524]
[1756955289984,1.12847326,111520.0,111510.0,0.87954]
[1756955290185,1.12847326,111520.0,111510.0,0.86524]
[1756955290788,1.13447326,111520.0,111510.0,0.02474]
[1756955290987,1.13447326,111520.0,111510.0,0.89162]
[1756955291184,1.13447326,111520.0,111510.0,0.89106]
[1756955291394,1.18259325,111520.0,111510.0,0.89106]
[1756955291594,1.18259325,111520.0,111510.0,0.02474]
[1756955291797,1.13447326,111520.0,111510.0,0.89114]
[1756955292991,1.13447326,111520.0,111510.0,0.02474]
[1756955293194,1.13447326,111520.0,111510.0,0.8907]
[1756955293595,1.13447326,111520.0,111510.0,1.26103781]
[1756955293995,1.13447326,111520.0,111510.0,0.8907]
[1756955294193,0.77367326,111520.0,111510.0,0.8907]
[1756955294393,0.77367326,111520.0,111510.0,1.26103781]
[1756955294799,1.13447326,111520.0,111510.0,1.26103781]
[1756955295190,0.77367326,111520.0,111510.0,1.27533781]
[1756955295595,0.77367326,111520.0,111510.0,0.905]
[1756955295901,0.77367326,111520.0,111510.0,1.27533781]
[1756955296198,0.82179325,111520.0,111510.0,1.27533781]
[1756955296802,0.80763325,111520.0,111510.0,1.27533781]
[1756955297004,0.80763325,111520.0,111510.0,1.28450972]
[1756955297500,0.80763325,111520.0,111510.0,1.28392679]
[1756955298593,0.80763325,111520.0,111510.0,1.30502919]
[1756955299701,0.55763325,111520.0,111510.0,1.30502919]
[1756955301416,0.52367326,111520.0,111510.0,0.93527431]
[1756955301615,0.52367326,111520.0,111510.0,1.30322919]
[1756955301818,0.52367326,111520.0,111510.0,1.29417728]
[1756955302418,0.24780918,111520.0,111510.0,1.29417728]
[1756955302722,0.60860918,111520.0,111510.0,1.29417728]
[1756955302912,0.94860918,111520.0,111510.0,0.42989728]
[1756955303113,0.94860918,111520.0,111510.0,0.9244224]
[1756955303308,0.94860918,111520.0,111510.0,1.29417728]
[1756955303510,0.94860918,111520.0,111510.0,0.9244224]
[1756955303817,0.94860918,111520.0,111510.0,0.9101224]
[1756955305626,0.96461156,111520.0,111510.0,0.9101224]
[1756955306324,0.96461156,111520.0,111510.0,0.86167973]
[1756955306525,0.96461156,111520.0,111510.0,0.88441973]
[1756955307919,0.03841,111510.0,111500.0,0.29682799]
[1756955308225,1.19086802,111510.0,111500.0,0.88624]
[1756955308428,1.11072972,111510.0,111500.0,0.88624]
[1756955308610,1.11072972,111510.0,111500.0,0.02284]
[1756955308921,0.01416,111500.0,111490.0,1.89522]
[1756955309121,1.22681039,111500.0,111490.0,2.75828]
[1756955310830,1.22981039,111500.0,111490.0,2.75828]
[1756955311021,1.23381039,111500.0,111490.0,2.75928]
[1756955311526,1.29805795,111500.0,111490.0,2.75928]
[1756955311719,1.21772728,111500.0,111490.0,2.75928]
[1756955313211,0.8722224,111500.0,111490.0,0.8869]
[1756955313416,1.25094064,111500.0,111490.0,0.8869]
[1756955313611,1.18669308,111500.0,111490.0,0.001]
[1756955313919,1.25094064,111500.0,111490.0,0.86292]
[1756955314120,1.50094064,111500.0,111490.0,0.86292]
[1756955314318,1.50094064,111500.0,111490.0,0.8636]
[1756955317226,1.43669308,111500.0,111490.0,0.8636]
[1756955317428,1.43669308,111500.0,111490.0,0.86272]
[1756955317924,1.50094064,111500.0,111490.0,0.001]
[1756955319223,1.51702375,111500.0,111490.0,0.001]
[1756955319430,1.43669308,111500.0,111490.0,0.001]
[1756955321128,1.43669308,111500.0,111490.0,0.00548]
[1756955321322,1.50079781,111500.0,111490.0,0.00548]
[1756955324733,1.13104293,111500.0,111490.0,0.00548]
[1756955324935,1.50079781,111500.0,111490.0,0.00548]
[1756955329938,1.13104293,111500.0,111490.0,0.00548]
[1756955330139,1.50089781,111500.0,111490.0,0.00548]
[1756955332342,1.0670382,111500.0,111490.0,0.00548]
[1756955332544,1.50090959,111500.0,111490.0,0.00548]
[1756955333344,0.03631,111490.0,111480.0,0.0002]
[1756955333638,0.03631,111480.0,111470.0,0.8813]
[1756955333844,1.14495914,111480.0,111470.0,0.8811]
[1756955334041,1.16672398,111480.0,111470.0,0.8811]
[1756955334545,0.7969691,111480.0,111470.0,0.8811]
[1756955334752,1.16672398,111480.0,111470.0,0.8811]
[1756955336036,1.16872398,111480.0,111470.0,0.8811]
[1756955336436,1.16972398,111480.0,111470.0,0.8811]
[1756955337346,1.12162972,111480.0,111470.0,0.8811]
[1756955338243,1.1857554,111480.0,111470.0,0.8811]
[1756955341446,1.12162972,111480.0,111470.0,0.8811]
[1756955342246,0.53600052,111480.0,111470.0,0.8811]
[1756955342545,0.76187484,111480.0,111470.0,0.89484]
[1756955343237,0.50600052,111480.0,111470.0,0.89484]
[1756955343638,0.85600052,111480.0,111470.0,0.89484]
[1756955343938,0.52600052,111480.0,111470.0,0.89484]
[1756955344138,0.80600052,111480.0,111470.0,0.89484]
[1756955344339,0.53600052,111480.0,111470.0,0.89484]
[1756955344741,0.82600052,111480.0,111470.0,0.89484]
[1756955345951,0.53600052,111480.0,111470.0,0.8811]
[1756955346450,0.86600052,111480.0,111470.0,0.8811]
[1756955346749,0.86600052,111480.0,111470.0,0.02282]
[1756955346950,1.2357554,111480.0,111470.0,0.87938]
[1756955347651,0.53600052,111480.0,111470.0,0.87938]
[1756955347947,1.1857554,111480.0,111470.0,0.87938]
[1756955349150,1.2357554,111480.0,111470.0,0.87938]
[1756955349750,0.86600052,111480.0,111470.0,0.87938]
[1756955349949,1.1757554,111480.0,111470.0,0.87938]
[1756955350854,0.53600052,111480.0,111470.0,0.87938]
[1756955351056,1.1657554,111480.0,111470.0,0.87938]
[1756955351544,1.10162972,111480.0,111470.0,0.87938]
[1756955351747,1.18196039,111480.0,111470.0,0.87938]
[1756955352051,1.18196039,111480.0,111470.0,0.02282]
[1756955352252,1.18196039,111480.0,111470.0,0.88018]
[1756955353049,0.81220551,111480.0,111470.0,0.88018]
[1756955353242,0.55220551,111480.0,111470.0,1.26368488]
[1756955353447,0.81617747,111480.0,111470.0,1.26368488]
[1756955353650,0.84617747,111480.0,111470.0,1.26368488]
[1756955353952,0.52617747,111480.0,111470.0,1.26368488]
[1756955354153,0.84617747,111480.0,111470.0,0.89393]
[1756955354354,0.84617747,111480.0,111470.0,1.26368488]
[1756955354549,0.52617747,111480.0,111470.0,1.26368488]
[1756955354749,0.85617747,111480.0,111470.0,1.26368488]
[1756955355054,0.50617747,111480.0,111470.0,1.26368488]
[1756955355754,0.81617747,111480.0,111470.0,1.26368488]
[1756955355954,0.53617747,111480.0,111470.0,1.26368488]
[1756955356261,0.79617747,111480.0,111470.0,1.26368488]
[1756955356963,0.52240747,111480.0,111470.0,1.26368488]
[1756955357157,0.78240747,111480.0,111470.0,1.26368488]
[1756955357460,0.78240747,111480.0,111470.0,0.89393]
[1756955357650,0.51240747,111480.0,111470.0,0.89393]
[1756955357954,0.52240747,111480.0,111470.0,1.26368488]
[1756955358145,0.52240747,111480.0,111470.0,1.51368488]
[1756955358347,0.49986747,111480.0,111470.0,1.51368488]
[1756955358555,0.48379926,111480.0,111470.0,1.51368488]
[1756955359452,0.43556484,111480.0,111470.0,1.51389948]
[1756955359654,0.43556484,111480.0,111470.0,1.14393]
[1756955359955,0.43556484,111480.0,111470.0,1.51389948]
[1756955360358,0.12298902,111480.0,111470.0,1.50473]
[1756955360552,0.12298902,111480.0,111470.0,1.87469948]
[1756955360757,0.11298902,111480.0,111470.0,1.51309948]
[1756955361552,0.06476484,111480.0,111470.0,1.87389948]
[1756955361750,0.11298902,111480.0,111470.0,1.51309948]
[1756955361950,0.06476484,111480.0,111470.0,1.87389948]
[1756955362559,0.06476484,111480.0,111470.0,1.77829948]
[1756955363056,0.42789902,111480.0,111470.0,1.77825948]
[1756955363957,0.14789902,111480.0,111470.0,1.77825948]
[1756955364357,0.09789902,111480.0,111470.0,0.53802]
[1756955364544,1.1836485,111480.0,111470.0,0.53802]
[1756955364750,1.4336485,111480.0,111470.0,1.14454]
[1756955364950,1.1836485,111480.0,111470.0,1.14454]
[1756955365361,0.46287902,111480.0,111470.0,1.14454]
[1756955365562,0.82367902,111480.0,111470.0,1.52825948]
[1756955365861,0.77545484,111480.0,111470.0,1.52825948]
[1756955366560,0.77545484,111480.0,111470.0,1.15829]
[1756955368664,0.77545484,111480.0,111470.0,0.89309]
[1756955369857,0.41465484,111480.0,111470.0,0.89309]
[1756955370058,0.41465484,111480.0,111470.0,1.26305948]
[1756955370973,1.14542432,111480.0,111470.0,0.8793]
[1756955371161,1.1936485,111480.0,111470.0,0.02282]
[1756955371358,1.14542432,111480.0,111470.0,0.02282]
[1756955371572,0.03989,111470.0,111460.0,0.3097476]
[1756955371864,1.14885487,111470.0,111460.0,1.1660276]
[1756955372070,1.17061971,111470.0,111460.0,1.1660276]
[1756955372369,1.12242432,111470.0,111460.0,1.1660276]
[1756955372564,0.81675747,111470.0,111460.0,1.1660276]
[1756955372762,1.18672695,111470.0,111460.0,1.1660276]
[1756955373153,1.18672695,111470.0,111460.0,0.2652]
[1756955373359,1.18672695,111470.0,111460.0,1.12168]
[1756955373567,0.81675747,111470.0,111460.0,1.12168]
[1756955373866,1.18672695,111470.0,111460.0,1.12168]
[1756955374366,1.18672695,111470.0,111460.0,0.87975]
[1756955374367,1.12242432,111470.0,111460.0,0.87975]
[1756955374563,1.18672695,111470.0,111460.0,0.87975]
[1756955374764,1.18872695,111470.0,111460.0,0.02327]
[1756955374959,0.01498,111460.0,111450.0,1.8956]
[1756955375164,1.12390642,111460.0,111450.0,2.75376]
[1756955375466,1.14567126,111460.0,111450.0,1.8954]
[1756955375764,1.16181695,111460.0,111450.0,2.75372]
[1756955376467,1.09751432,111460.0,111450.0,2.75372]
[1756955376968,1.17061741,111460.0,111450.0,2.75372]
[1756955377167,0.80064793,111460.0,111450.0,2.75372]
[1756955377366,1.24072002,111460.0,111450.0,2.75372]
[1756955377569,1.17061693,111460.0,111450.0,2.75372]
[1756955378458,0.80064745,111460.0,111450.0,2.75372]
[1756955378659,0.80064745,111460.0,111450.0,2.76747]
[1756955378963,1.17061693,111460.0,111450.0,2.76747]
[1756955379569,0.81064745,111460.0,111450.0,2.76747]
[1756955379768,1.15061693,111460.0,111450.0,2.76747]
[1756955380464,1.17352693,111460.0,111450.0,0.89534]
[1756955380670,0.80455745,111460.0,111450.0,0.88159]
[1756955380969,1.17452693,111460.0,111450.0,0.88159]
[1756955381164,0.80455745,111460.0,111450.0,0.88159]
[1756955381364,1.17552693,111460.0,111450.0,0.88159]
[1756955381566,0.80555745,111460.0,111450.0,0.88559]
[1756955381769,1.17552693,111460.0,111450.0,0.88559]
[1756955382669,0.89561032,111460.0,111450.0,0.89937]
[1756955382871,1.2655798,111460.0,111450.0,0.89937]
[1756955383165,0.89561032,111460.0,111450.0,0.89937]
[1756955383568,1.2655798,111460.0,111450.0,0.89937]
[1756955383768,0.88361032,111460.0,111450.0,0.89937]
[1756955383969,1.2545798,111460.0,111450.0,0.89937]
[1756955384370,1.20647719,111460.0,111450.0,0.89937]
[1756955384772,1.20547719,111460.0,111450.0,0.89937]
[1756955384968,1.20747719,111460.0,111450.0,0.89937]
[1756955385671,0.84252771,111460.0,111450.0,1.51933948]
[1756955386564,0.77247484,111460.0,111450.0,1.51933948]
[1756955386980,0.78401484,111460.0,111450.0,0.28705]
[1756955387164,0.78601484,111460.0,111450.0,1.15037]
[1756955387359,0.02576484,111460.0,111450.0,2.99104792]
[1756955387565,0.02576484,111460.0,111450.0,0.64785]
[1756955387566,0.02476484,111460.0,111450.0,0.64785]
[1756955387765,0.37864484,111460.0,111450.0,1.52105948]
[1756955387971,0.04864484,111460.0,111450.0,0.65701948]
[1756955388171,0.33476484,111460.0,111450.0,1.52097948]
[1756955388575,0.02376484,111460.0,111450.0,1.52097948]
[1756955388973,0.36376484,111460.0,111450.0,1.52097948]
[1756955389173,0.02376484,111460.0,111450.0,1.52097948]
[1756955389373,0.02376484,111460.0,111450.0,2.25174896]
[1756955389573,0.02376484,111460.0,111450.0,2.99168792]
[1756955389775,0.02176484,111460.0,111450.0,2.99168792]
[1756955390176,0.02276484,111460.0,111450.0,2.99168792]
[1756955390376,0.02251634,111460.0,111450.0,2.99168792]
[1756955390583,0.02251634,111460.0,111450.0,3.08137942]
[1756955390779,0.3609,111480.0,111450.0,3.37657942]
[1756955390979,0.46231664,111480.0,111470.0,0.40771948]
[1756955391272,0.10151664,111480.0,111470.0,1.27123948]
[1756955392481,0.10151664,111480.0,111470.0,1.63203948]
[1756955393072,0.10151664,111480.0,111470.0,1.26207]
[1756955393277,0.10251664,111480.0,111470.0,0.76851948]
[1756955393478,0.10251664,111480.0,111470.0,1.63231948]
[1756955393677,0.02251664,111480.0,111470.0,1.27151948]
[1756955393986,0.38451664,111480.0,111470.0,1.27151948]
[1756955394175,0.06451664,111480.0,111470.0,1.27151948]
[1756955394375,0.08839664,111480.0,111470.0,1.27139948]
[1756955394578,0.04839664,111480.0,111470.0,0.40771948]
[1756955394880,0.42839664,111480.0,111470.0,1.27115948]
[1756955396087,0.42839664,111480.0,111470.0,0.90115]
[1756955396384,0.39839664,111480.0,111470.0,0.90115]
[1756955396582,0.11839664,111480.0,111470.0,1.27111948]
[1756955396783,0.39839664,111480.0,111470.0,1.27111948]
[1756955397185,0.39839664,111480.0,111470.0,1.28031728]
[1756955397380,0.35839664,111480.0,111470.0,1.28031728]
[1756955397576,0.04839664,111480.0,111470.0,1.28031728]
[1756955397777,0.35839664,111480.0,111470.0,1.28031728]
[1756955398085,0.04839664,111480.0,111470.0,1.28031728]
[1756955398586,0.08839664,111480.0,111470.0,1.28031728]
[1756955398886,0.04839664,111480.0,111470.0,1.28031728]
[1756955399186,0.08839664,111480.0,111470.0,1.28031728]
[1756955399379,0.04451664,111480.0,111470.0,1.28031728]
[1756955400686,0.02451664,111480.0,111470.0,1.28031728]
[1756955400887,0.03451664,111480.0,111470.0,1.28031728]
[1756955401080,0.38839664,111480.0,111470.0,1.1755478]
[1756955401381,0.08839664,111480.0,111470.0,1.54487728]
[1756955401580,0.38839664,111480.0,111470.0,1.54487728]
[1756955401986,0.08839664,111480.0,111470.0,1.54487728]
[1756955402380,0.38839664,111480.0,111470.0,1.54487728]
[1756955402686,0.41839664,111480.0,111470.0,1.54487728]
[1756955403284,0.08839664,111480.0,111470.0,1.54487728]
[1756955403486,0.41839664,111480.0,111470.0,1.54487728]
[1756955404089,0.09839664,111480.0,111470.0,1.54487728]
[1756955404288,0.09839664,111480.0,111470.0,1.61534697]
[1756955404589,0.41839664,111480.0,111470.0,1.61534697]
[1756955404785,0.04839664,111480.0,111470.0,1.24457749]
[1756955404988,0.04839664,111480.0,111470.0,1.61454697]
[1756955404989,0.08839664,111480.0,111470.0,1.61454697]
[1756955405485,0.39839664,111480.0,111470.0,1.61454697]
[1756955405783,0.06451664,111480.0,111470.0,1.98451645]
[1756955406085,0.02451664,111480.0,111470.0,3.42493081]
[1756955406293,0.003,111480.0,111470.0,3.42493081]
[1756955407089,0.003,111480.0,111470.0,3.45493081]
[1756955410282,0.02451763,111480.0,111470.0,3.45493081]
[1756955411382,0.003,111480.0,111470.0,3.45493081]
[1756955413584,0.003,111480.0,111470.0,3.77493081]
[1756955415492,0.0002,111500.0,111490.0,0.03833]
[1756955415691,0.04545059,111500.0,111490.0,1.91445557]
[1756955416895,0.05145059,111500.0,111490.0,1.91445557]
[1756955417987,0.02763059,111500.0,111490.0,1.91445557]
[1756955418294,0.02763059,111500.0,111490.0,2.00411477]
[1756955418995,0.02763059,111500.0,111490.0,1.75891477]
[1756955419589,0.02763059,111500.0,111490.0,1.75870069]
[1756955420791,0.02763059,111500.0,111490.0,1.75666069]
[1756955421599,0.02763059,111500.0,111490.0,2.11746069]
[1756955424796,0.02763059,111500.0,111490.0,2.38266069]
[1756955426201,0.02763059,111500.0,111490.0,1.52522069]
[1756955426501,0.02763059,111500.0,111490.0,2.38222069]
[1756955428498,0.02763059,111500.0,111490.0,2.35739069]
[1756955429600,0.02763059,111500.0,111490.0,1.13063529]
[1756955429899,0.02763059,111500.0,111490.0,2.26765149]
[1756955430301,0.02763059,111500.0,111490.0,1.50039069]
[1756955430499,0.29206059,111500.0,111490.0,1.02747609]
[1756955430700,0.39588059,111500.0,111490.0,1.93141149]
[1756955431303,0.31588059,111500.0,111490.0,1.93141149]
[1756955432011,0.27763059,111500.0,111490.0,1.90685149]
[1756955432799,0.27763059,111500.0,111490.0,1.53709609]
[1756955432999,0.27763059,111500.0,111490.0,1.90685149]
[1756955437509,0.63763059,111500.0,111490.0,1.04993149]
[1756955437707,0.63763059,111500.0,111490.0,1.90673149]
[1756955437913,0.65206059,111500.0,111490.0,1.90673149]
[1756955439098,0.29206059,111500.0,111490.0,1.90673149]
[1756955439304,0.27763059,111500.0,111490.0,1.90673149]
[1756955443619,0.27763059,111500.0,111490.0,1.99639109]
[1756955443820,0.27763059,111500.0,111490.0,1.90673149]
[1756955444515,0.02763059,111500.0,111490.0,1.90673149]
[1756955444919,0.02763059,111500.0,111490.0,2.24639109]
[1756955446320,0.02763059,111500.0,111490.0,2.15673149]
[1756955446526,0.05192059,111500.0,111490.0,2.17944149]
[1756955446824,0.05192059,111500.0,111490.0,1.32280149]
[1756955447023,0.05192059,111500.0,111490.0,2.17944149]
[1756955447525,0.05192059,111500.0,111490.0,1.32280149]
[1756955447826,0.05192059,111500.0,111490.0,2.17944149]
[1756955449122,0.05192059,111500.0,111490.0,1.32280149]
[1756955449321,0.43639059,111500.0,111490.0,1.91590149]
[1756955449928,0.39639059,111500.0,111490.0,1.91590149]
[1756955450224,0.06639059,111500.0,111490.0,1.91590149]
[1756955450427,0.06639059,111500.0,111490.0,1.92940149]
[1756955450729,0.05192059,111500.0,111490.0,1.92940149]
[1756955453740,0.02763059,111500.0,111490.0,1.92940149]
[1756955456147,0.02763059,111500.0,111490.0,1.55964609]
[1756955456341,0.02763059,111500.0,111490.0,1.92940149]
[1756955458133,0.02763059,111500.0,111490.0,3.82408149]
[1756955458345,0.02763059,111500.0,111490.0,2.96748149]
[1756955458645,0.02763059,111500.0,111490.0,3.82392149]
[1756955460941,0.02763059,111500.0,111490.0,2.96748149]
[1756955461242,0.02763059,111500.0,111490.0,3.82384149]
[1756955461440,0.04210059,111500.0,111490.0,2.59772609]
[1756955461745,0.66210059,111500.0,111490.0,2.95398149]
[1756955462042,1.0710032,111500.0,111490.0,3.44954149]
[1756955463647,1.0710032,111500.0,111490.0,3.07978609]
[1756955463849,1.0710032,111500.0,111490.0,3.44965149]
[1756955464148,1.02290059,111500.0,111490.0,3.44965149]
[1756955466147,0.65290059,111500.0,111490.0,3.46315149]
[1756955466546,1.00290059,111500.0,111490.0,3.46315149]
[1756955468049,1.00290059,111500.0,111490.0,3.07989609]
[1756955468248,1.00290059,111500.0,111490.0,3.44965149]
[1756955470351,1.00290059,111500.0,111490.0,3.07989609]
[1756955470553,1.00290059,111500.0,111490.0,3.44965149]
[1756955473553,0.67290059,111500.0,111490.0,3.44965149]
[1756955473753,0.65290059,111500.0,111490.0,3.44965149]
[1756955473954,1.01290059,111500.0,111490.0,3.44965149]
[1756955474652,0.67290059,111500.0,111490.0,3.44965149]
[1756955474852,0.63843059,111500.0,111490.0,3.46315149]
[1756955475154,0.96843059,111500.0,111490.0,3.46315149]
[1756955475457,0.95843059,111500.0,111490.0,3.46315149]
[1756955475657,0.63843059,111500.0,111490.0,3.09339609]